fUSD/lending_fUSD_20240118
["ID","MTS","AMOUNT","RATE_DAILY","PERIOD"]
[312004613,1705541446940,-345.31,0.0002243,2]
[312004614,1705541446949,-654.48,0.0002243,2]
[312004615,1705541446959,-500.0,0.0002243,2]
[312004616,1705541446968,-883.71,0.0002243,2]
[312004617,1705541446977,-500.0,0.0002243,2]
[312004618,1705541446986,-977.65,0.0002243,2]
[312004619,1705541446996,-500.0,0.0002243,2]
[312004620,1705541447005,-500.0,0.0002243,2]
[312004621,1705541447014,-511.61,0.0002243,2]
[312004622,1705541447024,-877.81,0.0002243,2]
[312004623,1705541447033,-1198.78,0.0002243,2]
[312004624,1705541447043,-279.42971363,0.0002243,2]
[312004625,1705541447051,-381.43656487,0.0002243,2]
[312004626,1705541447064,-500.0,0.0002243,2]
[312004627,1705541447074,-500.0,0.0002243,2]
[312004628,1705541447084,-500.0,0.0002243,2]
[312004629,1705541447094,-500.0,0.0002243,5]
[312004630,1705541447104,-1076.96,0.0002243,2]
[312004631,1705541447113,-500.0,0.0002243,2]
[312004632,1705541447123,-670.02,0.00022431,2]
[312004633,1705541447132,-500.0,0.00022431,2]
[312004634,1705541447142,-1519.74,0.00022431,2]
[312004635,1705541447152,-500.0,0.00022431,2]
[312004636,1705541447161,-500.0,0.00022431,2]
[312004637,1705541447170,-500.0,0.00022431,2]
[312004638,1705541447180,-649.93,0.00022431,2]
[312004639,1705541447189,-500.0,0.00022431,2]
[312004640,1705541447199,-500.0,0.00022431,2]
[312004641,1705541447208,-500.0,0.00022431,2]
[312004642,1705541447217,-500.0,0.00022431,2]
[312004643,1705541447227,-601.31,0.00022431,2]
[312004644,1705541447236,-500.0,0.00022431,2]
[312004645,1705541447246,-630.61,0.00022431,2]
[312004646,1705541447256,-500.0,0.00022431,2]
[312004647,1705541447265,-500.0,0.00022431,2]
[312004648,1705541447276,-500.0,0.00022431,2]
[312004649,1705541447371,-500.0,0.00022431,2]
[312004650,1705541447381,-450.49,0.00022431,2]
[312004651,1705541447391,-500.0,0.00022431,2]
[312004652,1705541447401,-500.0,0.00022431,2]
[312004653,1705541447411,-500.0,0.00022431,2]
[312004654,1705541447420,-553.56,0.00022431,2]
[312004655,1705541447431,-155.41,0.00022443,2]
[312004656,1705541447442,-252.91,0.00022464,2]
[312004657,1705541447450,-500.0,0.00022464,2]
[312004658,1705541447460,-380.8,0.00022464,2]
[312004659,1705541447469,-319.93,0.00022464,2]
[312004660,1705541447478,-313.9,0.00022464,2]
[312004661,1705541447487,-1016.55,0.00022464,2]
[312004662,1705541447496,-390.55,0.00022464,2]
[312004663,1705541447505,-245.38,0.00022464,2]
[312004664,1705541447514,-614.65,0.00022464,2]
[312004665,1705541447523,-500.0,0.00022464,2]
[312004666,1705541447532,-799.85,0.00022464,2]
[312004667,1705541447541,-474.22,0.00022464,2]
[312004668,1705541447550,-201.85,0.00022464,2]
[312004669,1705541447560,-500.0,0.00022464,2]
[312004670,1705541447570,-500.0,0.00022464,2]
[312004671,1705541447579,-307.56559082,0.00022464,2]
[312004672,1705541447588,-219.87,0.00022464,2]
[312004673,1705541447597,-500.0,0.00022464,2]
[312004674,1705541447606,-524.79957117,0.00022464,2]
[312004675,1705541447615,-500.0,0.00022464,2]
[312004676,1705541447624,-500.0,0.00022464,2]
[312004677,1705541447633,-500.0,0.00022464,2]
[312004678,1705541447642,-500.0,0.00022464,2]
[312004679,1705541447652,-500.0,0.00022464,2]
[312004680,1705541447664,-528.10555098,0.00022464,2]
[312004681,1705541447673,-472.31,0.00022464,2]
[312004682,1705541447682,-334.89,0.00022464,2]
[312004683,1705541447692,-320.22,0.00022464,2]
[312004684,1705541447705,-500.0,0.00022464,2]
[312004685,1705541447715,-500.0,0.00022464,2]
[312004686,1705541447724,-285.95,0.00022464,2]
[312004687,1705541447735,-500.0,0.00022464,2]
[312004688,1705541447744,-500.0,0.00022464,2]
[312004689,1705541447753,-499.76,0.00022464,2]
[312004690,1705541447762,-500.0,0.00022464,2]
[312004691,1705541447771,-370.56,0.00022464,2]
[312004692,1705541447780,-288.27,0.00022464,2]
[312004693,1705541447789,-500.0,0.00022464,2]
[312004694,1705541447799,-384.89,0.00022464,2]
[312004695,1705541447808,-183.31,0.00022464,2]
[312004696,1705541447818,-500.0,0.00022464,2]
[312004697,1705541447827,-222.27,0.00022464,2]
[312004698,1705541447837,-500.0,0.00022464,2]
[312004699,1705541447846,-501.01129582,0.00022464,2]
[312004700,1705541447855,-309.28,0.00022464,2]
[312004701,1705541447865,-276.97112645,0.00022464,2]
[312004702,1705541447874,-639.36,0.00022464,2]
[312004703,1705541447883,-292.13,0.00022464,2]
[312004704,1705541447892,-500.0,0.00022464,2]
[312004705,1705541447902,-609.8,0.00022464,2]
[312004706,1705541447911,-500.0,0.00022464,2]
[312004707,1705541447919,-500.0,0.00022464,2]
[312004708,1705541447928,-500.0,0.00022464,2]
[312004709,1705541447938,-500.0,0.00022464,2]
[312004710,1705541447946,-500.0,0.00022464,2]
[312004711,1705541447955,-569.42,0.00022464,2]
[312004712,1705541447964,-500.0,0.00022464,2]
[312004713,1705541447973,-500.0,0.00022464,2]
[312004714,1705541447982,-279.57,0.00022464,2]
[312004715,1705541447991,-500.0,0.00022464,2]
[312004716,1705541448001,-500.0,0.00022464,2]
[312004717,1705541448010,-500.0,0.00022464,2]
[312004718,1705541448019,-365.62,0.00022464,2]
[312004719,1705541448027,-500.0,0.00022464,2]
[312004720,1705541448036,-500.0,0.00022464,2]
[312004721,1705541448045,-712.18,0.00022464,2]
[312004722,1705541448054,-500.0,0.00022464,2]
[312004723,1705541448063,-464.12,0.00022464,2]
[312004724,1705541448072,-637.03,0.00022464,2]
[312004725,1705541448081,-500.0,0.00022464,2]
[312004726,1705541448090,-500.0,0.00022465,2]
[312004727,1705541448099,-500.0,0.00022465,2]
[312004728,1705541448108,-500.0,0.00022465,2]
[312004729,1705541448117,-500.0,0.00022465,2]
[312004730,1705541448126,-580.59,0.00022465,2]
[312004731,1705541448135,-500.0,0.00022465,2]
[312004732,1705541448144,-500.0,0.00022465,2]
[312004733,1705541448154,-673.72,0.00022465,2]
[312004734,1705541448163,-3043.7,0.00022465,2]
[312004735,1705541448171,-500.0,0.00022465,2]
[312004736,1705541448181,-716.69,0.00022465,2]
[312004737,1705541448190,-1449.57,0.00022465,2]
[312004738,1705541448199,-500.0,0.00022465,2]
[312004739,1705541448208,-500.0,0.00022465,2]
[312004740,1705541448217,-500.0,0.00022465,2]
[312004741,1705541448225,-500.0,0.00022465,2]
[312004742,1705541448234,-500.0,0.00022465,2]
[312004743,1705541448243,-1266.32,0.00022465,2]
[312004744,1705541448253,-500.0,0.00022465,2]
[312004745,1705541448262,-7360.22,0.00022465,2]
[312004746,1705541448271,-500.0,0.00022465,2]
[312004747,1705541448280,-500.0,0.00022465,2]
[312004748,1705541448290,-598.03,0.00022465,2]
[312004749,1705541448299,-500.0,0.00022465,2]
[312004750,1705541448308,-500.0,0.00022465,2]
[312004751,1705541448317,-500.0,0.00022465,2]
[312004752,1705541448326,-966.79,0.00022465,2]
[312004753,1705541448335,-578.36,0.00022465,2]
[312004754,1705541448344,-377.28,0.00022465,2]
[312004755,1705541448353,-1357.07,0.00022465,2]
[312004756,1705541448362,-500.0,0.00022465,2]
[312004757,1705541448371,-500.0,0.00022465,2]
[312004758,1705541448380,-500.0,0.00022465,2]
[312004759,1705541448389,-500.0,0.00022465,2]
[312004760,1705541448398,-771.11,0.00022465,2]
[312004761,1705541448407,-216.3767391,0.00022465,2]
[312004762,1705541448416,-500.0,0.00022465,2]
[312004763,1705541448425,-2573.14,0.00022465,2]
[312004764,1705541448435,-1296.91,0.00022465,5]
[312004765,1705541448444,-500.0,0.00022465,2]
[312004766,1705541448453,-500.0,0.00022465,2]
[312004767,1705541448462,-500.0,0.00022465,2]
[312004768,1705541448471,-500.0,0.00022465,2]
[312004769,1705541448480,-500.0,0.00022465,2]
[312004770,1705541448490,-12238.12948093,0.000225,2]
[312004771,1705541448499,-1357.0,0.00022523,2]
[312004772,1705541448508,-840.0,0.00022523,2]
[312004773,1705541448517,-208.661,0.00022523,2]
[312004774,1705541448527,-229.85259391,0.00022529,2]
[312004775,1705541448536,-5438.27013944,0.0002253,2]
[312004776,1705541448545,-155.0,0.0002253,2]
[312004777,1705541448555,-1043.44502482,0.0002253,2]
[312004778,1705541448564,-196.8387694,0.0002253,2]
[312004779,1705541448573,-178.29,0.00022531,2]
[312004780,1705541448582,-500.0,0.00022531,2]
[312004781,1705541448592,-500.0,0.00022532,2]
[312004782,1705541448601,-500.0,0.00022532,2]
[312004783,1705541448610,-463.16606833,0.00022533,2]
[312004784,1705541448619,-180.0,0.00022603,2]
[312004785,1705541448628,-8416.97943428,0.00022604,2]
[312004786,1705541448637,-150.0,0.00022626,2]
[312004787,1705541448647,-150.0,0.00022626,2]
[312004788,1705541448659,-150.0,0.00022626,2]
[312004789,1705541448670,-150.0,0.00022627,2]
[312004790,1705541448679,-8416.97943419,0.00022631,2]
[312004791,1705541448688,-150.0,0.00022638,2]
[312004792,1705541448697,-197.83751016,0.00022639,2]
[312004793,1705541448707,-150.0,0.0002264,2]
[312004794,1705541448717,-150.0,0.00022649,2]
[312004795,1705541448726,-150.0,0.00022655,2]
[312004796,1705541448737,-463.16606833,0.00022655,2]
[312004797,1705541448746,-8416.97943419,0.00022658,2]
[312004798,1705541448755,-150.0,0.00022659,2]
[312004799,1705541448765,-150.0,0.00022663,2]
[312004800,1705541448774,-150.0,0.00022667,2]
[312004801,1705541448783,-8416.97943419,0.00022685,2]
[312004802,1705541448792,-150.0,0.00022687,2]
[312004803,1705541448803,-150.0,0.00022688,2]
[312004804,1705541448813,-150.0,0.00022698,2]
[312004805,1705541448822,-1000.0,0.000227,2]
[312004806,1705541448834,-1000.0,0.000227,7]
[312004807,1705541448843,-3951.25,0.00022703,2]
[312004808,1705541448852,-4191.75,0.00022703,2]
[312004809,1705541448862,-548.82,0.00022703,2]
[312004810,1705541448873,-500.0,0.00022703,2]
[312004811,1705541448885,-1550.01,0.00022703,2]
[312004812,1705541448895,-500.0,0.00022703,2]
[312004813,1705541448904,-1116.06,0.00022703,2]
[312004814,1705541448915,-9181.47,0.00022703,2]
[312004815,1705541448926,-569.22,0.00022703,2]
[312004816,1705541448937,-522.33,0.00022703,2]
[312004817,1705541448948,-500.0,0.00022703,2]
[312004818,1705541448958,-2482.27,0.00022703,2]
[312004819,1705541448967,-500.0,0.00022703,2]
[312004820,1705541448975,-500.0,0.00022703,2]
[312004821,1705541448984,-500.0,0.00022703,2]
[312004822,1705541448994,-500.0,0.00022703,2]
[312004823,1705541449002,-574.76,0.00022703,2]
[312004824,1705541449013,-195.18,0.00022703,2]
[312004825,1705541449022,-500.0,0.00022703,2]
[312004826,1705541449031,-754.69,0.00022703,2]
[312004827,1705541449040,-500.0,0.00022703,2]
[312004828,1705541449049,-2112.93,0.00022703,2]
[312004829,1705541449059,-4720.32,0.00022703,2]
[312004830,1705541449067,-819.29,0.00022703,2]
[312004831,1705541449076,-500.0,0.00022703,2]
[312004832,1705541449086,-500.0,0.00022703,2]
[312004833,1705541449095,-927.11,0.00022703,2]
[312004834,1705541449104,-1190.09,0.00022703,2]
[312004835,1705541449114,-500.0,0.00022703,2]
[312004836,1705541449123,-500.0,0.00022703,2]
[312004837,1705541449133,-1597.83,0.00022703,2]
[312004838,1705541449144,-2011.6,0.00022703,2]
[312004839,1705541449155,-1048.47,0.00022703,2]
[312004840,1705541449165,-1398.62,0.00022703,2]
[312004841,1705541449174,-1671.69,0.00022703,2]
[312004842,1705541449183,-2477.58,0.00022703,2]
[312004843,1705541449192,-1506.55,0.00022703,2]
[312004844,1705541449202,-974.71,0.00022703,2]
[312004845,1705541449211,-500.0,0.00022703,2]
[312004846,1705541449220,-500.0,0.00022703,2]
[312004847,1705541449229,-2126.6,0.00022703,2]
[312004848,1705541449238,-500.0,0.00022703,2]
[312004849,1705541449247,-1034.0,0.00022704,2]
[312004850,1705541449256,-500.0,0.00022704,2]
[312004851,1705541449265,-500.0,0.00022704,2]
[312004852,1705541449274,-500.0,0.00022704,2]
[312004853,1705541449283,-500.0,0.00022704,2]
[312004854,1705541449292,-500.0,0.00022704,2]
[312004855,1705541449302,-500.0,0.00022704,2]
[312004856,1705541449311,-173.57,0.00022704,2]
[312004857,1705541449320,-500.0,0.00022704,2]
[312004858,1705541449329,-480.7,0.00022704,2]
[312004859,1705541449339,-500.0,0.00022704,2]
[312004860,1705541449348,-500.0,0.00022704,2]
[312004861,1705541449357,-500.0,0.00022704,2]
[312004862,1705541449366,-500.0,0.00022704,2]
[312004863,1705541449375,-266.99,0.00022704,2]
[312004864,1705541449383,-500.0,0.00022704,2]
[312004865,1705541449392,-500.0,0.00022704,2]
[312004866,1705541449401,-500.0,0.00022704,2]
[312004867,1705541449410,-500.0,0.00022704,2]
[312004868,1705541449419,-500.0,0.00022704,2]
[312004869,1705541449428,-500.0,0.00022704,2]
[312004870,1705541449437,-500.0,0.00022704,2]
[312004871,1705541449445,-500.0,0.00022704,2]
[312004872,1705541449455,-474.11,0.00022704,2]
[312004873,1705541449464,-150.0,0.00022704,2]
[312004874,1705541449472,-500.0,0.00022704,2]
[312004875,1705541449481,-500.0,0.00022704,2]
[312004876,1705541449490,-500.0,0.00022704,2]
[312004877,1705541449499,-374.61,0.00022704,2]
[312004878,1705541449508,-500.0,0.00022704,2]
[312004879,1705541449518,-500.0,0.00022704,2]
[312004880,1705541449527,-500.0,0.00022704,2]
[312004881,1705541449536,-500.0,0.00022704,2]
[312004882,1705541449545,-500.0,0.00022704,2]
[312004883,1705541449554,-500.0,0.00022704,2]
[312004884,1705541449563,-150.0,0.00022704,2]
[312004885,1705541449573,-500.0,0.00022704,2]
[312004886,1705541449582,-613.32,0.00022704,2]
[312004887,1705541449591,-500.0,0.00022704,2]
[312004888,1705541449600,-500.0,0.00022704,2]
[312004889,1705541449610,-500.0,0.00022704,2]
[312004890,1705541449620,-160.59,0.00022704,2]
[312004891,1705541449629,-500.0,0.00022704,2]
[312004892,1705541449638,-500.0,0.00022704,2]
[312004893,1705541449649,-500.0,0.00022704,2]
[312004894,1705541449662,-500.0,0.00022704,2]
[312004895,1705541449671,-150.0,0.00022704,2]
[312004896,1705541449681,-463.98,0.00022704,2]
[312004897,1705541449690,-500.0,0.00022704,2]
[312004898,1705541449699,-500.0,0.00022704,2]
[312004899,1705541449709,-500.0,0.00022704,2]
[312004900,1705541449718,-514.36,0.00022704,2]
[312004901,1705541449728,-500.0,0.00022704,2]
[312004902,1705541449738,-1622.24,0.00022704,2]
[312004903,1705541449747,-500.0,0.00022704,2]
[312004904,1705541449757,-500.0,0.00022704,2]
[312004905,1705541449766,-539.35,0.00022704,2]
[312004906,1705541449776,-500.0,0.00022704,2]
[312004907,1705541449785,-500.0,0.00022704,2]
[312004908,1705541449795,-500.0,0.00022704,2]
[312004909,1705541449804,-500.0,0.00022704,2]
[312004910,1705541449814,-874.61,0.00022704,2]
[312004911,1705541449824,-500.0,0.00022704,2]
[312004912,1705541449833,-500.0,0.00022704,2]
[312004913,1705541449842,-500.0,0.00022704,2]
[312004914,1705541449851,-500.0,0.00022704,2]
[312004915,1705541449860,-500.0,0.00022704,2]
[312004916,1705541449869,-1430.67,0.00022704,2]
[312004917,1705541449878,-204.89,0.00022704,2]
[312004918,1705541449887,-500.0,0.00022704,2]
[312004919,1705541449896,-1006.85,0.00022704,2]
[312004920,1705541449905,-500.0,0.00022704,2]
[312004921,1705541449914,-500.0,0.00022704,2]
[312004922,1705541449924,-500.0,0.00022704,2]
[312004923,1705541449933,-500.0,0.00022704,2]
[312004924,1705541449941,-445.29,0.00022704,2]
[312004925,1705541449950,-500.0,0.00022704,2]
[312004926,1705541449959,-500.0,0.00022704,2]
[312004927,1705541449969,-505.59,0.00022704,2]
[312004928,1705541449978,-863.88,0.00022704,2]
[312004929,1705541449987,-500.0,0.00022704,2]
[312004930,1705541449996,-1413.73,0.00022704,2]
[312004931,1705541450005,-500.0,0.00022704,2]
[312004932,1705541450014,-1582.25,0.00022704,2]
[312004933,1705541450024,-1940.96,0.00022704,2]
[312004934,1705541450033,-500.0,0.00022704,2]
[312004935,1705541450042,-500.0,0.00022704,2]
[312004936,1705541450051,-642.73,0.00022704,2]
[312004937,1705541450060,-618.21,0.00022704,2]
[312004938,1705541450069,-654.48,0.00022704,2]
[312004939,1705541450078,-500.0,0.00022704,2]
[312004940,1705541450088,-883.71,0.00022704,2]
[312004941,1705541450097,-500.0,0.00022704,2]
[312004942,1705541450107,-977.65,0.00022704,2]
[312004943,1705541450115,-500.0,0.00022704,2]
[312004944,1705541450124,-500.0,0.00022704,2]
[312004945,1705541450133,-877.81,0.00022704,2]
[312004946,1705541450142,-1198.78,0.00022704,2]
[312004947,1705541450151,-500.0,0.00022704,2]
[312004948,1705541450161,-500.0,0.00022704,2]
[312004949,1705541450171,-500.0,0.00022704,2]
[312004950,1705541450180,-500.0,0.00022704,5]
[312004951,1705541450189,-1076.96,0.00022704,2]
[312004952,1705541450198,-500.0,0.00022704,2]
[312004953,1705541450207,-670.02,0.00022705,2]
[312004954,1705541450216,-439.25,0.00022705,2]
[312004955,1705541450225,-1519.74,0.00022705,2]
[312004956,1705541450234,-500.0,0.00022705,2]
[312004957,1705541450244,-500.0,0.00022705,2]
[312004958,1705541450253,-500.0,0.00022705,2]
[312004959,1705541450262,-649.93,0.00022705,2]
[312004960,1705541450271,-500.0,0.00022705,2]
[312004961,1705541450281,-500.0,0.00022705,2]
[312004962,1705541450290,-500.0,0.00022705,2]
[312004963,1705541450300,-500.0,0.00022705,2]
[312004964,1705541450310,-601.31,0.00022705,2]
[312004965,1705541450319,-500.0,0.00022705,2]
[312004966,1705541450329,-630.61,0.00022705,2]
[312004967,1705541450340,-500.0,0.00022705,2]
[312004968,1705541450350,-500.0,0.00022705,2]
[312004969,1705541450360,-500.0,0.00022705,2]
[312004970,1705541450369,-500.0,0.00022705,2]
[312004971,1705541450379,-500.0,0.00022705,2]
[312004972,1705541450389,-500.0,0.00022705,2]
[312004973,1705541450399,-500.0,0.00022705,2]
[312004974,1705541450409,-553.56,0.00022705,2]
[312004975,1705541450419,-8416.97943419,0.00022712,2]
[312004976,1705541450429,-1500.0,0.00022715,2]
[312004977,1705541450439,-150.0,0.00022718,2]
[312004978,1705541450449,-150.0,0.0002272,2]
[312004979,1705541450459,-800.0,0.00022732,2]
[312004980,1705541450469,-213.93156777,0.00022733,2]
[312004981,1705541450479,-346.41314422,0.00022733,2]
[312004982,1705541450489,-1928.55924565,0.00022733,2]
[312004983,1705541450498,-500.0,0.00022738,2]
[312004984,1705541450508,-1016.55,0.00022738,2]
[312004985,1705541450517,-506.25,0.00022738,2]
[312004986,1705541450526,-799.85,0.00022738,2]
[312004987,1705541450536,-500.0,0.00022738,2]
[312004988,1705541450546,-161.64,0.00022738,2]
[312004989,1705541450556,-500.0,0.00022738,2]
[312004990,1705541450566,-354.03,0.00022738,2]
[312004991,1705541450576,-500.0,0.00022738,2]
[312004992,1705541450588,-311.74,0.00022738,2]
[312004993,1705541450598,-500.0,0.00022738,2]
[312004994,1705541450608,-154.12,0.00022738,2]
[312004995,1705541450618,-374.37,0.00022738,2]
[312004996,1705541450628,-500.0,0.00022738,2]
[312004997,1705541450637,-341.79,0.00022738,2]
[312004998,1705541450649,-500.0,0.00022738,2]
[312004999,1705541450659,-468.06,0.00022738,2]
[312005000,1705541450669,-8416.97943419,0.00022739,2]
[312005001,1705541450679,-587.52,0.00022739,2]
[312005002,1705541450690,-500.0,0.00022739,2]
[312005003,1705541450699,-500.0,0.00022739,2]
[312005004,1705541450709,-500.0,0.00022739,2]
[312005005,1705541450719,-580.59,0.00022739,2]
[312005006,1705541450730,-500.0,0.00022739,2]
[312005007,1705541450741,-500.0,0.00022739,2]
[312005008,1705541450750,-673.72,0.00022739,2]
[312005009,1705541450760,-3043.7,0.00022739,2]
[312005010,1705541450770,-500.0,0.00022739,2]
[312005011,1705541450779,-716.69,0.00022739,2]
[312005012,1705541450789,-1449.57,0.00022739,2]
[312005013,1705541450800,-500.0,0.00022739,2]
[312005014,1705541450809,-500.0,0.00022739,2]
[312005015,1705541450820,-589.62,0.00022739,2]
[312005016,1705541450829,-500.0,0.00022739,2]
[312005017,1705541450840,-500.0,0.00022739,2]
[312005018,1705541450850,-1266.32,0.00022739,2]
[312005019,1705541450859,-500.0,0.00022739,2]
[312005020,1705541450868,-7360.22,0.00022739,2]
[312005021,1705541450878,-500.0,0.00022739,2]
[312005022,1705541450887,-500.0,0.00022739,2]
[312005023,1705541450896,-598.03,0.00022739,2]
[312005024,1705541450905,-500.0,0.00022739,2]
[312005025,1705541450915,-500.0,0.00022739,2]
[312005026,1705541450926,-500.0,0.00022739,2]
[312005027,1705541450935,-966.79,0.00022739,2]
[312005028,1705541450945,-578.36,0.00022739,2]
[312005029,1705541450954,-1357.07,0.00022739,2]
[312005030,1705541450964,-500.0,0.00022739,2]
[312005031,1705541450974,-500.0,0.00022739,2]
[312005032,1705541450983,-500.0,0.00022739,2]
[312005033,1705541450993,-500.0,0.00022739,2]
[312005034,1705541451002,-771.11,0.00022739,2]
[312005035,1705541451011,-500.0,0.00022739,2]
[312005036,1705541451020,-2573.14,0.00022739,2]
[312005037,1705541451030,-1296.91,0.00022739,5]
[312005038,1705541451040,-500.0,0.00022739,2]
[312005039,1705541451049,-500.0,0.00022739,2]
[312005040,1705541451058,-500.0,0.00022739,2]
[312005041,1705541451067,-222.66539148,0.00022739,2]
[312005042,1705541451077,-500.0,0.00022739,2]
[312005043,1705541451088,-155.41,0.00022742,2]
[312005044,1705541451097,-150.0,0.00022749,2]
[312005045,1705541451106,-150.0,0.00022755,2]
[312005046,1705541451116,-150.0,0.00022757,2]
[312005047,1705541451125,-200.0,0.00022758,2]
[312005048,1705541451134,-150.0,0.00022759,2]
[312005049,1705541451144,-150.0,0.00022765,2]
[312005050,1705541451153,-158.86,0.00022765,2]
[312005051,1705541451162,-8416.97943419,0.00022765,2]
[312005052,1705541451172,-154.0,0.00022766,2]
[312005053,1705541451182,-150.0,0.00022768,2]
[312005054,1705541451191,-4906.0063682,0.0002277,2]
[312005055,1705541451201,-150.0,0.00022774,2]
[312005056,1705541451210,-150.0,0.00022775,2]
[312005057,1705541451219,-150.0,0.00022776,2]
[312005058,1705541451229,-463.16606833,0.00022778,2]
[312005059,1705541451238,-150.0,0.00022781,2]
[312005060,1705541451248,-150.0,0.00022784,2]
[312005061,1705541451258,-8416.97943419,0.00022792,2]
[312005062,1705541451268,-712.18,0.00022797,2]
[312005063,1705541451277,-1000.0,0.00022798,2]
[312005064,1705541451287,-1255.53256283,0.00022803,2]
[312005065,1705541451297,-1767.25939778,0.00022803,2]
[312005066,1705541451307,-286.52776858,0.00022803,2]
[312005067,1705541451317,-155.0,0.00022803,2]
[312005068,1705541451326,-246.56217999,0.00022804,2]
[312005069,1705541451338,-150.0,0.00022805,2]
[312005070,1705541451347,-1419.7,0.00022806,2]
[312005071,1705541451357,-150.0,0.00022806,2]
[312005072,1705541451367,-150.0,0.00022808,2]
[312005073,1705541451377,-656.4,0.00022815,2]
[312005074,1705541451387,-150.0,0.00022816,2]
[312005075,1705541451397,-213.93156775,0.00022817,2]
[312005076,1705541451407,-346.41314421,0.00022817,2]
[312005077,1705541451417,-1928.55924565,0.00022817,2]
[312005078,1705541451428,-8416.97943419,0.00022819,2]
[312005079,1705541451438,-800.0,0.00022822,2]
[312005080,1705541451448,-250.76947249,0.00022823,2]
[312005081,1705541451457,-250.76947249,0.00022823,2]
[312005082,1705541451467,-150.0,0.00022826,2]
[312005083,1705541451477,-7573.97088981,0.00022832,2]
[312005084,1705541451487,-277920.59120421,0.00022833,3]
[312005085,1705541451919,-531.51998445,0.00022833,3]
[312005086,1705541451935,-347.697945,0.00022833,3]
[312005087,1705541452688,-216.71358292,0.00022155,2]
[312005088,1705541452698,-500.0,0.00022156,2]
[312005089,1705541452708,-500.0,0.00022156,2]
[312005090,1705541452718,-206.86592424,0.00022157,2]
[312005091,1705541452728,-500.0,0.0002243,2]
[312005092,1705541452738,-500.0,0.0002243,2]
[312005093,1705541452748,-500.0,0.00022704,2]
[312005094,1705541452758,-500.0,0.00022704,2]
[312005095,1705541452767,-16810.93833878,0.00022833,3]
[312005096,1705541452784,-1916.96630606,0.00022833,3]
[312005097,1705541452802,-469.30961175,0.00022833,3]
[312005098,1705541453045,-571.7847984,0.00021917,2]
[312005099,1705541453055,-291.91424092,0.00022156,2]
[312005100,1705541453064,-508.91434741,0.00022156,2]
[312005101,1705541453073,-1326.11480068,0.00022833,3]
[312005102,1705541453085,-874.40154912,0.00022833,3]
[312005103,1705541453096,-4811.40947178,0.00022833,3]
[312005104,1705541453111,-443.79,0.00022833,3]
[312005105,1705541453376,-512.67,0.00021917,2]
[312005109,1705541600537,349.3614599,0.0003,120]
[312005114,1705541620309,578.93,0.00018336,2]
[312005163,1705542019656,233.81,0.00025,30]
[312005165,1705542056146,549.98,0.00018336,2]
[312005167,1705542093948,206.0,0.00017776,2]
[312005175,1705542273968,205.0,0.00017776,2]
[312005189,1705542526459,554.99,0.0001795,2]